bitfinex/quotes_BTCUSD_20241013
["timestamp","ask_amount","ask_price","bid_price","bid_amount"]
[1728839094472,0.32570094,62871.0,62870.0,0.18422401]
[1728839094902,0.159065,62868.0,62863.0,0.03195]
[1728839095139,0.159064,62868.0,62866.0,0.05495]
[1728839095334,0.159064,62868.0,62867.0,0.18422401]
[1728839095561,0.32570994,62868.0,62867.0,0.18422401]
[1728839095775,0.32570994,62868.0,62867.0,0.023]
[1728839095983,0.35062157,62868.0,62867.0,0.023]
[1728839096619,0.318137,62866.0,62850.0,0.318214]
[1728839096897,0.318137,62866.0,62858.0,0.24042122]
[1728839096898,0.159086,62859.0,62858.0,0.24042122]
[1728839097103,0.159086,62859.0,62858.0,0.16122401]
[1728839097327,0.318152,62863.0,62858.0,0.16122401]
[1728839097546,0.318152,62863.0,62859.0,0.16122401]
[1728839097547,0.159082,62861.0,62859.0,0.16122401]
[1728839097755,0.318152,62863.0,62859.0,0.16122401]
[1728839097980,0.159083,62860.0,62859.0,0.16122401]
[1728839098186,0.16664594,62860.0,62859.0,0.18422401]
[1728839099526,0.32572894,62860.0,62859.0,0.18422401]
[1728839100163,0.18150243,62860.0,62859.0,0.18422401]
[1728839100394,0.16664594,62860.0,62859.0,0.18422401]
[1728839100610,0.16764594,62860.0,62859.0,0.18422401]
[1728839101261,0.001,62860.0,62859.0,0.18422401]
[1728839101476,0.001,62860.0,62859.0,0.34331001]
[1728839102129,0.01585603,62860.0,62859.0,0.34331001]
[1728839102363,0.01485603,62860.0,62859.0,0.34331001]
[1728839102819,0.01585603,62860.0,62859.0,0.34331001]
[1728839104112,0.01585603,62860.0,62859.0,0.34631001]
[1728839104543,0.01485603,62860.0,62859.0,0.34631001]
[1728839104973,0.01485603,62860.0,62859.0,0.34931001]
[1728839105189,0.01485603,62860.0,62859.0,0.19022401]
[1728839105633,0.01485603,62860.0,62859.0,0.18722401]
[1728839106319,0.01485603,62860.0,62859.0,0.19122401]
[1728839106770,0.01485603,62860.0,62859.0,0.59073123]
[1728839106994,0.0009804,62866.0,62865.0,0.182071]
[1728839107215,0.000819,62875.0,62865.0,0.182071]
[1728839107216,0.24042122,62872.0,62866.0,0.023]
[1728839107459,0.24042122,62872.0,62868.0,0.023]
[1728839107460,0.39947522,62872.0,62868.0,0.023]
[1728839107664,0.39947522,62872.0,62869.0,0.16122401]
[1728839107876,0.159055,62871.0,62870.0,0.023]
[1728839108086,0.318102,62873.0,62870.0,0.18422401]
[1728839108294,0.15905,62873.0,62871.0,0.16122401]
[1728839108513,0.159053,62872.0,62871.0,0.16122401]
[1728839108739,0.159053,62872.0,62871.0,0.18422401]
[1728839110037,0.159053,62872.0,62856.0,0.03195]
[1728839110038,0.318144,62865.0,62856.0,0.03195]
[1728839110273,0.32572894,62860.0,62853.0,0.1591]
[1728839110521,0.32572894,62860.0,62850.0,0.318213]
[1728839110763,0.32572894,62860.0,62851.0,0.39952522]
[1728839111206,0.32572894,62860.0,62851.0,0.27237122]
[1728839112108,0.32572894,62860.0,62849.0,0.001638]
[1728839112109,0.50112894,62860.0,62849.0,0.001638]
[1728839112856,0.52604623,62860.0,62849.0,0.001638]
[1728839113087,0.52704623,62860.0,62849.0,0.001638]
[1728839113331,0.45164623,62860.0,62851.0,0.24042122]
[1728839113556,0.45164623,62860.0,62849.0,0.319856]
[1728839113557,0.69206745,62860.0,62859.0,0.002638]
[1728839113791,0.45364623,62860.0,62859.0,0.002638]
[1728839114454,0.45064623,62860.0,62859.0,0.001638]
[1728839114674,0.45364623,62860.0,62859.0,0.001638]
[1728839115326,0.45464623,62860.0,62859.0,0.002638]
[1728839115732,0.45364623,62860.0,62859.0,0.001638]
[1728839115997,0.45664623,62860.0,62859.0,0.002638]
[1728839116277,0.45764623,62860.0,62859.0,0.003638]
[1728839116933,0.45664623,62860.0,62859.0,0.002638]
[1728839117156,0.45764623,62860.0,62859.0,0.003638]
[1728839117360,0.45164623,62860.0,62859.0,0.002638]
[1728839117566,0.45564623,62860.0,62859.0,0.003638]
[1728839117780,0.45564623,62860.0,62859.0,0.002638]
[1728839118216,0.45964623,62860.0,62859.0,0.002638]
[1728839119261,0.45864623,62860.0,62859.0,0.001638]
[1728839119632,0.45964623,62860.0,62859.0,0.001638]
[1728839119843,0.43472894,62860.0,62859.0,0.001638]
[1728839120262,0.43372894,62860.0,62859.0,0.001638]
[1728839120651,0.42972894,62860.0,62859.0,0.001638]
[1728839120858,0.42572894,62860.0,62859.0,0.001638]
[1728839121176,0.42972894,62860.0,62859.0,0.001638]
[1728839121388,0.42672894,62860.0,62859.0,0.001638]
[1728839121758,0.42972894,62860.0,62859.0,0.001638]
[1728839122669,0.42872894,62860.0,62859.0,0.001638]
[1728839122900,0.45364495,62860.0,62859.0,0.001638]
[1728839123127,0.45464495,62860.0,62859.0,0.001638]
[1728839123572,0.45364495,62860.0,62859.0,0.001638]
[1728839123824,0.45064495,62860.0,62859.0,0.001638]
[1728839124043,0.45364495,62860.0,62859.0,0.001638]
[1728839128184,0.52446548,62860.0,62859.0,0.001638]
[1728839128411,0.60516548,62860.0,62859.0,0.001638]
[1728839128937,0.60316548,62860.0,62859.0,0.001638]
[1728839129597,0.60216548,62860.0,62859.0,0.001638]
[1728839129821,0.57824947,62860.0,62859.0,0.002638]
[1728839130045,0.57624947,62860.0,62859.0,0.002638]
[1728839130275,0.58024947,62860.0,62859.0,0.003638]
[1728839132938,0.60516725,62860.0,62859.0,0.003638]
[1728839133150,0.53434672,62860.0,62859.0,0.003638]
[1728839139921,0.50942894,62860.0,62859.0,0.003638]
[1728839142976,0.53434674,62860.0,62859.0,0.003638]
[1728839148501,0.45564674,62860.0,62859.0,0.003638]
[1728839148779,0.1299178,62860.0,62859.0,0.003638]
[1728839148991,0.1890008,62860.0,62859.0,0.003638]
[1728839149208,0.005,62860.0,62859.0,0.18786201]
[1728839149442,0.005,62860.0,62859.0,0.34694801]
[1728839149668,0.159076,62863.0,62860.0,0.023]
[1728839149910,0.15908,62862.0,62860.0,0.023]
[1728839150147,0.24042122,62867.0,62860.0,0.023]
[1728839150148,0.159081,62861.0,62860.0,0.023]
[1728839151091,0.159081,62861.0,62859.0,0.001638]
[1728839151092,0.159083,62860.0,62859.0,0.001638]
[1728839151809,0.1587582,62860.0,62859.0,0.001638]
[1728839152740,0.18367382,62860.0,62859.0,0.001638]
[1728839153636,0.18467382,62860.0,62859.0,0.001638]
[1728839154316,0.18567382,62860.0,62859.0,0.001638]
[1728839155420,0.002,62860.0,62859.0,0.18586201]
[1728839155648,0.002,62860.0,62859.0,0.34494801]
[1728839155874,0.002,62860.0,62859.0,0.26546201]
[1728839156094,0.002,62860.0,62859.0,0.42454801]
[1728839157199,0.002,62860.0,62859.0,0.52204801]
[1728839160189,0.001,62860.0,62859.0,0.52204801]
[1728839160422,0.32570694,62869.0,62865.0,0.159068]
[1728839160638,0.159064,62868.0,62867.0,0.0796]
[1728839161358,0.159081,62861.0,62860.0,0.1026]
[1728839161587,0.32572694,62861.0,62860.0,0.26382401]
[1728839163153,0.16664594,62861.0,62860.0,0.26382401]
[1728839164039,0.16764594,62861.0,62860.0,0.26382401]
[1728839164490,0.16864594,62861.0,62860.0,0.26382401]
[1728839165397,0.32772694,62861.0,62860.0,0.18422401]
[1728839166824,0.16864594,62861.0,62860.0,0.18422401]
[1728839167040,0.16864594,62861.0,62860.0,0.34330701]
[1728839167266,0.002,62861.0,62860.0,0.34330701]
[1728839167728,0.16864594,62861.0,62860.0,0.18422401]
[1728839167952,0.32672694,62861.0,62860.0,0.18422401]
[1728839168388,0.32672694,62861.0,62860.0,0.18822401]
[1728839168858,0.32572694,62861.0,62860.0,0.18422401]
[1728839169294,0.32571694,62865.0,62861.0,0.18208]
[1728839169518,0.16664594,62865.0,62863.0,0.023]
[1728839169739,0.32571694,62865.0,62864.0,0.023]
[1728839170878,0.32871694,62865.0,62864.0,0.023]
[1728839171120,0.159083,62860.0,62859.0,0.001638]
[1728839171365,0.32572894,62860.0,62859.0,0.001638]
[1728839173596,0.32572894,62860.0,62859.0,0.003638]
[1728839174459,0.32572894,62860.0,62859.0,0.005638]
[1728839175142,0.32572894,62860.0,62859.0,0.003638]
[1728839175369,0.32572894,62860.0,62859.0,0.001638]
[1728839188981,0.42450639,62860.0,62859.0,0.001638]
[1728839189230,0.42532539,62860.0,62859.0,0.001638]
[1728839189919,0.38437108,62860.0,62859.0,0.001638]
[1728839190817,0.38837108,62860.0,62859.0,0.002638]
[1728839191681,0.39137108,62860.0,62859.0,0.002638]
[1728839192332,0.38837108,62860.0,62859.0,0.002638]
[1728839193185,0.39137108,62860.0,62859.0,0.003638]
[1728839198331,0.27913654,62860.0,62859.0,0.003638]
[1728839203063,0.30405062,62860.0,62859.0,0.003638]
[1728839205303,0.41628516,62860.0,62859.0,0.003638]
[1728839205515,0.30405062,62860.0,62859.0,0.003638]
[1728839205738,0.51628516,62860.0,62859.0,0.003638]
[1728839205992,0.75060248,62860.0,62859.0,0.003638]
[1728839206510,0.88554699,62860.0,62859.0,0.003638]
[1728839206777,0.27134254,62850.0,62849.0,0.001638]
[1728839207440,0.29625985,62850.0,62849.0,0.001638]
[1728839207879,0.30005985,62850.0,62849.0,0.002638]
[1728839208337,0.40829439,62850.0,62849.0,0.001638]
[1728839208599,0.69216503,62850.0,62849.0,0.002638]
[1728839208833,0.69716503,62850.0,62849.0,0.002638]
[1728839209548,0.77840128,62850.0,62849.0,0.002638]
[1728839210000,0.76148397,62850.0,62849.0,0.003638]
[1728839210909,0.27137354,62838.0,62837.0,0.24205722]
[1728839211353,0.27137354,62838.0,62837.0,0.001636]
[1728839211354,0.38360808,62838.0,62837.0,0.001636]
[1728839211806,0.48360808,62838.0,62837.0,0.001636]
[1728839212256,0.48660808,62838.0,62837.0,0.001636]
[1728839212500,0.48660808,62838.0,62824.0,0.24205722]
[1728839212501,0.105,62837.0,62824.0,0.24205722]
[1728839212722,0.27140654,62825.0,62824.0,0.24205722]
[1728839213212,0.27140654,62825.0,62824.0,0.001636]
[1728839214102,0.37140654,62825.0,62824.0,0.001636]
[1728839214332,0.39633409,62825.0,62824.0,0.001636]
[1728839214783,0.50856863,62825.0,62824.0,0.001636]
[1728839215012,0.51056863,62825.0,62824.0,0.001636]
[1728839215250,0.39833409,62825.0,62824.0,0.001636]
[1728839215525,0.51556863,62825.0,62824.0,0.002636]
[1728839215762,0.51556863,62825.0,62824.0,0.001636]
[1728839215763,0.51356863,62825.0,62824.0,0.001636]
[1728839215975,0.51556863,62825.0,62824.0,0.001636]
[1728839216189,0.52656863,62825.0,62824.0,0.001636]
[1728839216452,0.52456863,62825.0,62824.0,0.001636]
[1728839216922,0.52456863,62825.0,62808.0,0.096538]
[1728839216923,0.21223454,62812.0,62808.0,0.24205922]
[1728839217149,0.27144654,62809.0,62808.0,0.24205922]
[1728839217370,0.38368108,62809.0,62808.0,0.001638]
[1728839217595,0.29637877,62809.0,62808.0,0.001638]
[1728839218260,0.29637877,62809.0,62808.0,0.004638]
[1728839218477,0.29637877,62809.0,62808.0,0.001638]
[1728839218478,0.43154065,62809.0,62808.0,0.001638]
[1728839218913,0.43254065,62809.0,62808.0,0.007638]
[1728839219136,0.54477519,62809.0,62808.0,0.007638]
[1728839219602,0.43254065,62809.0,62808.0,0.008638]
[1728839219819,0.64477519,62809.0,62808.0,0.008638]
[1728839220034,0.56229866,62809.0,62808.0,0.007638]
[1728839220488,0.56229866,62809.0,62808.0,0.008638]
[1728839220988,0.56129866,62809.0,62808.0,0.001638]
[1728839221218,0.56129866,62809.0,62804.0,0.001638]
[1728839221219,0.15922,62806.0,62804.0,0.001638]
[1728839221470,0.42614478,62806.0,62804.0,0.001638]
[1728839221712,0.51795447,62806.0,62804.0,0.001638]
[1728839222404,0.51995447,62806.0,62804.0,0.001638]
[1728839222628,0.51795447,62806.0,62804.0,0.001638]
[1728839222878,0.51795447,62806.0,62796.0,0.001638]
[1728839222879,0.318475,62800.0,62796.0,0.001638]
[1728839223102,0.33384956,62797.0,62796.0,0.001638]
[1728839223364,0.59809256,62797.0,62796.0,0.001638]
[1728839224514,0.62303286,62797.0,62796.0,0.001638]
[1728839224725,0.45610808,62797.0,62796.0,0.001638]
[1728839224942,0.45110808,62797.0,62796.0,0.001638]
[1728839225389,0.49504202,62797.0,62796.0,0.001638]
[1728839225874,0.50604202,62797.0,62796.0,0.001638]
[1728839226395,0.51304202,62797.0,62796.0,0.001638]
[1728839226628,0.52404202,62797.0,62796.0,0.001638]
[1728839227072,0.51304202,62797.0,62796.0,0.001638]
[1728839227518,0.52004202,62797.0,62796.0,0.001638]
[1728839230010,0.49510172,62797.0,62796.0,0.001638]
[1728839232938,0.52004115,62797.0,62796.0,0.001638]
[1728839235046,0.45110721,62797.0,62796.0,0.001638]
[1728839235495,0.45610721,62797.0,62796.0,0.001638]
[1728839236724,0.46110721,62797.0,62796.0,0.001638]
[1728839239943,0.43616778,62797.0,62796.0,0.001638]
[1728839242025,0.11,62797.0,62796.0,0.078138]
[1728839242257,0.269243,62797.0,62796.0,0.078138]
[1728839243183,0.264243,62797.0,62796.0,0.078138]
[1728839245547,0.105,62797.0,62796.0,0.078138]
[1728839245774,0.264243,62797.0,62796.0,0.078138]
[1728839248100,0.264243,62797.0,62796.0,0.08312544]
[1728839248303,0.164243,62797.0,62796.0,0.08312544]
[1728839248947,0.159243,62797.0,62796.0,0.08312544]
[1728839249377,0.155243,62797.0,62796.0,0.08312544]
[1728839250010,0.155243,62797.0,62796.0,0.078138]
[1728839250672,0.155243,62797.0,62796.0,0.001638]
[1728839250881,0.154243,62797.0,62796.0,0.001638]
[1728839251612,0.161243,62797.0,62796.0,0.002638]
[1728839251850,0.154243,62797.0,62796.0,0.001638]
[1728839252057,0.154243,62797.0,62796.0,0.002638]
[1728839252275,0.168243,62797.0,62796.0,0.002638]
[1728839252697,0.19318195,62797.0,62796.0,0.002638]
[1728839254454,0.29318195,62797.0,62796.0,0.002638]
[1728839255618,0.40561173,62797.0,62796.0,0.002638]
[1728839255843,0.40429378,62797.0,62796.0,0.002638]
[1728839256535,0.40929378,62797.0,62796.0,0.002638]
[1728839258339,0.296864,62797.0,62796.0,0.002638]
[1728839258763,0.40929378,62797.0,62796.0,0.002638]
[1728839259219,0.27192505,62797.0,62796.0,0.002638]
[1728839260569,0.27274505,62797.0,62796.0,0.002638]
[1728839261684,0.26774505,62797.0,62796.0,0.002638]
[1728839261949,0.26774505,62797.0,62796.0,0.085238]
[1728839262808,0.26074505,62797.0,62796.0,0.085238]
[1728839263024,0.25374505,62797.0,62796.0,0.084238]
[1728839263704,0.00082,62797.0,62796.0,0.183938]
[1728839264363,0.160063,62797.0,62796.0,0.183938]
[1728839264563,0.00082,62797.0,62796.0,0.183938]
[1728839264785,0.160063,62797.0,62796.0,0.183938]
[1728839264994,0.00082,62797.0,62796.0,0.183938]
[1728839265225,0.160063,62797.0,62796.0,0.183938]
[1728839265447,0.160063,62797.0,62796.0,0.1836132]
[1728839265902,0.00082,62797.0,62796.0,0.1866132]
[1728839266122,0.00082,62797.0,62796.0,0.1826132]
[1728839266780,0.00082,62797.0,62796.0,0.3418582]
[1728839267016,0.00082,62797.0,62796.0,0.1826132]
[1728839267458,0.00082,62797.0,62796.0,0.1866132]
[1728839267664,0.00082,62797.0,62796.0,0.1906132]
[1728839269043,0.160063,62797.0,62796.0,0.1906132]
[1728839272460,0.160063,62797.0,62796.0,0.0093132]
[1728839273202,0.160063,62797.0,62796.0,0.0053132]
[1728839273433,0.160063,62797.0,62796.0,0.0033132]
[1728839273665,0.28285388,62797.0,62796.0,0.0033132]
[1728839273897,0.38285388,62797.0,62796.0,0.0033132]
[1728839274149,0.38285388,62797.0,62796.0,0.0013132]
[1728839274368,0.260063,62797.0,62796.0,0.0013132]
[1728839275267,0.28500352,62797.0,62796.0,0.0013132]
[1728839275481,0.28700352,62797.0,62796.0,0.0013132]
[1728839275708,0.3974333,62797.0,62796.0,0.0013132]
[1728839275971,0.3974333,62797.0,62796.0,0.1675132]
[1728839275972,0.45592742,62797.0,62796.0,0.1675132]
[1728839276150,0.45792742,62797.0,62796.0,0.1675132]
[1728839276615,0.45592742,62797.0,62796.0,0.1675132]
[1728839276841,0.35192742,62797.0,62796.0,0.1675132]
[1728839277068,0.35792742,62797.0,62796.0,0.1675132]
[1728839277571,0.35392742,62797.0,62796.0,0.1675132]
[1728839278438,0.35192742,62797.0,62796.0,0.1675132]
[1728839279114,0.19268442,62797.0,62796.0,0.1675132]
[1728839279331,0.02576052,62797.0,62796.0,0.1675132]
[1728839279554,0.00082,62797.0,62796.0,0.1675132]
[1728839279985,0.160063,62797.0,62796.0,0.1675132]
[1728839280207,0.00082,62797.0,62796.0,0.1675132]
[1728839280423,0.160063,62797.0,62796.0,0.1675132]
[1728839280662,0.160063,62797.0,62796.0,0.1695132]
[1728839281152,0.00082,62797.0,62796.0,0.1675132]
[1728839281374,0.160063,62797.0,62796.0,0.1675132]
[1728839281806,0.160063,62797.0,62796.0,0.1705132]
[1728839282969,0.160063,62797.0,62796.0,0.1735132]
[1728839284725,0.00082,62797.0,62796.0,0.1735132]
[1728839284964,0.160063,62797.0,62796.0,0.1735132]
[1728839286315,0.3269869,62797.0,62796.0,0.0073132]
[1728839287420,0.3269869,62797.0,62796.0,0.0043132]
[1728839287904,0.3269869,62797.0,62796.0,0.0063132]
[1728839288344,0.3269869,62797.0,62796.0,0.0033132]
[1728839289021,0.3269869,62797.0,62796.0,0.0053132]
[1728839291905,0.1677439,62797.0,62796.0,0.0053132]
[1728839292121,0.3269869,62797.0,62796.0,0.0053132]
[1728839292346,0.1677439,62797.0,62796.0,0.0053132]
[1728839292791,0.3269869,62797.0,62796.0,0.0053132]
[1728839293030,0.20082,62797.0,62796.0,0.0053132]
[1728839293273,0.360063,62797.0,62796.0,0.0053132]
[1728839294414,0.20082,62797.0,62796.0,0.0053132]
[1728839294851,0.360063,62797.0,62796.0,0.0053132]
[1728839296188,0.20082,62797.0,62796.0,0.0053132]
[1728839296420,0.360063,62797.0,62796.0,0.0053132]
[1728839297810,0.47248231,62797.0,62796.0,0.0053132]
[1728839301476,0.31323931,62797.0,62796.0,0.0053132]
[1728839301708,0.20082,62797.0,62796.0,0.0053132]
[1728839302343,0.360063,62797.0,62796.0,0.0053132]
[1728839302788,0.20082,62797.0,62796.0,0.0053132]
[1728839303305,0.360063,62797.0,62796.0,0.0053132]
[1728839305518,0.20082,62797.0,62796.0,0.0053132]
[1728839305764,0.360063,62797.0,62796.0,0.0053132]
[1728839307376,0.20082,62797.0,62796.0,0.0053132]
[1728839307595,0.360063,62797.0,62796.0,0.0053132]
[1728839308250,0.20082,62797.0,62796.0,0.55178221]
[1728839308463,0.20082,62797.0,62796.0,0.59931409]
[1728839309605,0.20082,62797.0,62796.0,0.59731409]
[1728839309820,0.20182,62797.0,62796.0,0.60031409]
[1728839310044,0.20182,62797.0,62796.0,0.55478221]
[1728839310260,0.20282,62797.0,62796.0,0.86105315]
[1728839310483,0.20282,62797.0,62796.0,0.74722345]
[1728839311385,0.20282,62797.0,62796.0,0.86593316]
[1728839312269,0.20282,62797.0,62796.0,0.86093316]
[1728839312491,0.20282,62797.0,62796.0,0.86593316]
[1728839312707,0.20282,62797.0,62796.0,0.74222345]
[1728839312930,0.20282,62797.0,62796.0,0.74722345]
[1728839313263,0.20282,62797.0,62796.0,0.76357671]
[1728839313359,0.20282,62797.0,62796.0,0.85646641]
[1728839314018,0.20282,62797.0,62796.0,0.85146641]
[1728839314249,0.20282,62797.0,62796.0,0.75657671]
[1728839314695,0.20282,62797.0,62796.0,0.85346641]
[1728839315348,0.20282,62797.0,62796.0,0.75857671]
[1728839316242,0.20282,62797.0,62796.0,0.75657671]
[1728839316469,0.20282,62797.0,62796.0,0.82769499]
[1728839316890,0.20282,62797.0,62796.0,0.75857671]
[1728839317335,0.20282,62797.0,62796.0,0.82968501]
[1728839317544,0.20282,62797.0,62796.0,0.82968108]
[1728839318191,0.20282,62797.0,62796.0,0.75857671]
[1728839318428,0.20282,62797.0,62796.0,0.82967129]
[1728839318638,0.20282,62797.0,62796.0,0.89347329]
[1728839319290,0.20282,62797.0,62796.0,0.89098308]
[1728839319527,0.20282,62797.0,62796.0,0.64693747]
[1728839319780,0.20282,62797.0,62796.0,0.64493747]
[1728839319982,0.20282,62797.0,62796.0,0.64693747]
[1728839320197,0.20282,62797.0,62796.0,0.71803205]
[1728839320422,0.20282,62797.0,62796.0,0.64493747]
[1728839321568,0.20282,62797.0,62796.0,0.64693747]
[1728839322249,0.20282,62797.0,62796.0,0.64493747]
[1728839323398,0.20282,62797.0,62796.0,0.69231805]
[1728839324559,0.20282,62797.0,62796.0,0.69431805]
[1728839326720,0.20282,62797.0,62796.0,0.65193747]
[1728839326964,0.20282,62797.0,62796.0,0.72303205]
[1728839328610,0.20282,62797.0,62796.0,0.89787699]
[1728839328911,0.20282,62797.0,62796.0,0.82678241]
[1728839330248,0.20182,62797.0,62796.0,0.82178241]
[1728839330702,0.000819,62804.0,62803.0,0.388228]
[1728839330943,0.000819,62804.0,62803.0,0.66187132]
[1728839333099,0.000819,62804.0,62803.0,0.67487132]
[1728839334170,0.001819,62804.0,62803.0,0.68887132]
[1728839334259,0.001819,62804.0,62803.0,0.80629063]
[1728839334695,0.001819,62804.0,62803.0,0.69587132]
[1728839335690,0.001819,62804.0,62803.0,0.69387132]
[1728839335912,0.001819,62804.0,62803.0,0.69587132]
[1728839337028,0.001819,62804.0,62803.0,0.70775686]
[1728839338098,0.001819,62804.0,62803.0,0.82017617]
[1728839338314,0.001819,62804.0,62803.0,0.70775686]
[1728839338952,0.001819,62804.0,62803.0,0.82017617]
[1728839339977,0.001819,62804.0,62803.0,0.70775686]
[1728839340190,0.001819,62804.0,62803.0,0.70575686]
[1728839340418,0.001819,62804.0,62803.0,0.59333755]
[1728839340615,0.001819,62804.0,62803.0,0.59533755]
[1728839341238,0.001819,62804.0,62803.0,0.59283755]
[1728839341466,0.001819,62804.0,62803.0,0.57895201]
[1728839341953,0.001819,62804.0,62803.0,0.58095201]
[1728839342818,0.001819,62804.0,62803.0,0.59279209]
[1728839343675,0.001819,62804.0,62803.0,0.59079209]
[1728839344587,0.001819,62804.0,62803.0,0.59279209]
[1728839347408,0.001819,62804.0,62803.0,0.7052114]
[1728839348380,0.001819,62804.0,62803.0,0.85462807]
[1728839349294,0.00082,62809.0,62808.0,0.393815]
[1728839349527,0.00082,62809.0,62808.0,1.03692596]
[1728839349754,0.00082,62809.0,62808.0,0.94222437]
[1728839349995,0.00082,62809.0,62808.0,1.03692596]
[1728839350850,0.00082,62809.0,62808.0,1.05292596]
[1728839351974,0.00082,62809.0,62808.0,1.06592596]
[1728839353086,0.00082,62809.0,62808.0,0.97122437]
[1728839353315,0.00082,62809.0,62808.0,1.08959249]
[1728839353971,0.00082,62809.0,62808.0,1.08759249]
[1728839354203,0.00082,62809.0,62808.0,1.08959249]
[1728839354733,0.0009844,62816.0,62815.0,0.219097]
[1728839354989,0.0009844,62816.0,62815.0,0.38032101]
[1728839355237,0.11241931,62828.0,62818.0,0.023]
[1728839355480,0.0009944,62828.0,62820.0,0.182184]
[1728839355714,0.0009944,62828.0,62820.0,0.34340801]
[1728839355967,0.0009944,62828.0,62826.0,0.159168]
[1728839356207,0.0009944,62828.0,62827.0,0.34339101]
[1728839356463,0.41262122,62829.0,62828.0,0.159164]
[1728839356694,0.41262122,62829.0,62828.0,0.34338801]
[1728839356962,0.1722,62829.0,62828.0,0.34338801]
[1728839357907,0.0814,62834.0,62831.0,0.023]
[1728839358186,0.27157331,62832.0,62831.0,0.18422401]
[1728839360126,0.11241931,62832.0,62831.0,0.18622401]
[1728839360607,0.0814,62839.0,62838.0,0.159138]
[1728839360936,0.0814,62839.0,62838.0,0.32036301]
[1728839361123,0.39953922,62847.0,62843.0,0.159126]
[1728839361124,0.0814,62844.0,62843.0,0.159126]
[1728839361383,0.0814,62844.0,62843.0,0.34335001]
[1728839362339,0.0823899,62851.0,62844.0,0.023]
[1728839362598,0.0823899,62851.0,62850.0,0.182108]
[1728839362871,0.0823899,62851.0,62850.0,0.18422401]
[1728839363111,0.0814,62851.0,62850.0,0.18422401]
[1728839364064,0.0814,62851.0,62850.0,0.34333201]
[1728839364521,0.0814,62851.0,62850.0,0.18422401]
[1728839367453,0.159094,62856.0,62853.0,0.1591]
[1728839367694,0.24042122,62856.0,62851.0,0.023]
[1728839367935,0.1,62858.0,62856.0,0.159092]
[1728839368194,0.11323831,62860.0,62856.0,0.16122401]
[1728839368447,0.159087,62859.0,62857.0,0.18422401]
[1728839368675,0.11323831,62860.0,62857.0,0.18422401]
[1728839368676,0.27232231,62860.0,62857.0,0.34331401]
[1728839368925,0.43140531,62860.0,62857.0,0.18422401]
[1728839369154,0.159088,62858.0,62857.0,0.18422401]
[1728839370110,0.159088,62858.0,62857.0,0.18522401]
[1728839371257,0.159088,62858.0,62857.0,0.18722401]
[1728839371979,0.159088,62858.0,62857.0,0.003]
[1728839372506,0.27150731,62858.0,62857.0,0.005]
[1728839373230,0.27150731,62858.0,62857.0,0.003]
[1728839373495,0.159099,62854.0,62850.0,0.159108]
[1728839373745,0.159101,62853.0,62851.0,0.16122401]
[1728839373959,0.159099,62854.0,62852.0,0.023]
[1728839374183,0.159099,62854.0,62853.0,0.16122401]
[1728839374421,0.159099,62854.0,62853.0,0.18422401]
[1728839375399,0.27151531,62855.0,62854.0,0.023]
[1728839375628,0.318997,62858.0,62854.0,0.18422401]
[1728839375861,0.159093,62856.0,62855.0,0.18422401]
[1728839381827,0.27151231,62856.0,62855.0,0.18422401]
[1728839383273,0.000819,62858.0,62856.0,0.023]
[1728839383515,0.159091,62857.0,62856.0,0.023]
[1728839386861,0.27151031,62857.0,62856.0,0.023]
[1728839387583,0.159091,62857.0,62856.0,0.023]
[1728839389952,0.161091,62857.0,62856.0,0.023]
[1728839400560,0.161911,62857.0,62856.0,0.023]
[1728839401537,0.00282,62857.0,62856.0,0.023]
[1728839402045,0.161911,62857.0,62856.0,0.023]
[1728839402298,0.00082,62857.0,62856.0,0.023]
[1728839402990,0.159911,62857.0,62856.0,0.023]
[1728839404222,0.00082,62857.0,62856.0,0.1017]
[1728839404478,0.00082,62857.0,62856.0,0.42201701]
[1728839404753,0.00082,62857.0,62856.0,0.45491701]
[1728839404999,0.00082,62857.0,62856.0,0.45391701]
[1728839405516,0.00082,62857.0,62856.0,0.57133632]
[1728839405743,0.00082,62857.0,62856.0,0.65743632]
[1728839406033,0.00082,62857.0,62856.0,0.66343632]
[1728839406277,0.00082,62857.0,62856.0,0.67043632]
[1728839406763,0.00082,62857.0,62856.0,0.55801701]
[1728839407029,0.00082,62857.0,62856.0,0.55101701]
[1728839407273,0.00082,62857.0,62856.0,0.54401701]
[1728839407515,0.00082,62857.0,62856.0,0.55301701]
[1728839408519,0.00082,62857.0,62856.0,0.56101701]
[1728839409027,0.00082,62857.0,62856.0,0.55301701]
[1728839409269,0.00082,62857.0,62856.0,0.55001701]
[1728839409515,0.00082,62857.0,62856.0,0.55601701]
[1728839421575,0.00082,62857.0,62856.0,0.52411701]
[1728839421801,0.00082,62857.0,62856.0,0.55601701]
[1728839423731,0.00082,62857.0,62856.0,0.60333307]
[1728839426514,0.00082,62857.0,62856.0,0.55601701]
[1728839426738,0.00082,62857.0,62856.0,0.60334723]
[1728839427638,0.00082,62857.0,62856.0,0.57144723]
[1728839428510,0.00082,62857.0,62856.0,0.56544723]
[1728839428740,0.00082,62857.0,62856.0,0.59734723]
[1728839430128,0.00082,62857.0,62856.0,0.59634723]
[1728839430368,0.00082,62857.0,62856.0,0.59734723]
[1728839430613,0.00082,62857.0,62856.0,0.60334723]
[1728839431041,0.00082,62857.0,62856.0,0.60234723]
[1728839431276,0.00082,62857.0,62856.0,0.60834723]
[1728839431570,0.00082,62857.0,62856.0,0.60836209]
[1728839432652,0.00082,62857.0,62856.0,0.56101701]
[1728839435521,0.00082,62857.0,62856.0,0.63203464]
[1728839436030,0.00082,62857.0,62856.0,0.80681855]
[1728839436251,0.000819,62858.0,62857.0,0.182091]
[1728839436252,0.00019958,62858.0,62857.0,0.182091]
[1728839436479,0.00019958,62858.0,62857.0,0.34331501]
[1728839437175,0.00019958,62858.0,62857.0,0.45573432]
[1728839437393,0.00019958,62858.0,62857.0,0.80230385]
[1728839437618,0.00019958,62858.0,62857.0,0.80730385]
[1728839437887,0.00019958,62858.0,62857.0,0.81230385]
[1728839438109,0.00019958,62858.0,62857.0,0.69988454]
[1728839438332,0.00019958,62858.0,62857.0,0.71173709]
[1728839438979,0.00019958,62858.0,62857.0,0.72731599]
[1728839439966,0.00019958,62858.0,62857.0,0.71173709]
[1728839440229,0.00019958,62858.0,62857.0,0.69988454]